[Event "*** SCC Grand Prix: Titled Tuesday Blitz"]
[Site "Chess.com"]
[Date "2020.08.11"]
[Round "2"]
[White "Kotofeyca"]
[Black "Sammed_Shete"]
[Result "0-1"]
[WhiteElo "2287"]
[BlackElo "2646"]
[TimeControl "180+1"]
[EndTime "10:19:02 PDT"]
[Termination "Sammed_Shete won by checkmate"]

1. d4 {[%clk 0:02:40.9]} 1... Nf6 {[%clk 0:02:59.6]} 2. c4 {[%clk 0:02:41.4]}
2... e6 {[%clk 0:02:59.1]} 3. Nf3 {[%clk 0:02:40.9]} 3... d5 {[%clk 0:02:59.2]}
4. Nc3 {[%clk 0:02:40.6]} 4... Be7 {[%clk 0:02:58.6]} 5. cxd5 {[%clk 0:02:40.8]}
5... exd5 {[%clk 0:02:59.5]} 6. Bg5 {[%clk 0:02:40.8]} 6... O-O {[%clk
0:02:58.5]} 7. e3 {[%clk 0:02:41]} 7... c6 {[%clk 0:02:58.7]} 8. Qc2 {[%clk
0:02:41.1]} 8... Re8 {[%clk 0:02:54.6]} 9. Bd3 {[%clk 0:02:40.9]} 9... Nbd7
{[%clk 0:02:54.4]} 10. O-O {[%clk 0:02:40.7]} 10... Nf8 {[%clk 0:02:54.4]} 11.
Rab1 {[%clk 0:02:40.4]} 11... Ne4 {[%clk 0:02:47.1]} 12. Bxe4 {[%clk 0:02:40]}
12... dxe4 {[%clk 0:02:47]} 13. Nxe4 {[%clk 0:01:54.7]} 13... Bf5 {[%clk
0:02:34]} 14. Bf4 {[%clk 0:01:45.1]} 14... Bd6 {[%clk 0:02:02]} 15. Ne5 {[%clk
0:00:41.6]} 15... Bxe4 {[%clk 0:01:37.9]} 16. Qxe4 {[%clk 0:00:37.9]} 16... f6
{[%clk 0:01:38]} 17. Rfd1 {[%clk 0:00:29.6]} 17... Qe7 {[%clk 0:01:37]} 18. f3
{[%clk 0:00:17.9]} 18... fxe5 {[%clk 0:01:36.3]} 19. dxe5 {[%clk 0:00:18.8]}
19... Bc5 {[%clk 0:01:35.3]} 20. b4 {[%clk 0:00:16.3]} 20... Bb6 {[%clk
0:01:35]} 21. Bg3 {[%clk 0:00:16.1]} 21... Rad8 {[%clk 0:01:28.9]} 22. f4 {[%clk
0:00:16.3]} 22... Rxd1+ {[%clk 0:01:19.2]} 23. Rxd1 {[%clk 0:00:17.2]} 23... Rd8
{[%clk 0:01:20.1]} 24. Rf1 {[%clk 0:00:16.5]} 24... Qe6 {[%clk 0:01:16.7]} 25.
f5 {[%clk 0:00:16.1]} 25... Qd5 {[%clk 0:01:14.8]} 26. Qf4 {[%clk 0:00:16.2]}
26... Qd3 {[%clk 0:00:56.8]} 27. Bf2 {[%clk 0:00:14.3]} 27... Bc7 {[%clk
0:00:40.9]} 28. f6 {[%clk 0:00:14]} 28... Ng6 {[%clk 0:00:39.4]} 29. Qg5 {[%clk
0:00:12.7]} 29... Bxe5 {[%clk 0:00:36.6]} 30. f7+ {[%clk 0:00:12.1]} 30... Kf8
{[%clk 0:00:36.4]} 31. h4 {[%clk 0:00:09.5]} 31... Bf6 {[%clk 0:00:35.3]} 32.
Qg4 {[%clk 0:00:08.6]} 32... Ne5 {[%clk 0:00:34.6]} 33. Qf4 {[%clk 0:00:07.7]}
33... Qc4 {[%clk 0:00:30.6]} 34. e4 {[%clk 0:00:07.3]} 34... Qxf7 {[%clk
0:00:27.8]} 35. Bc5+ {[%clk 0:00:07.5]} 35... Kg8 {[%clk 0:00:27.7]} 36. h5
{[%clk 0:00:07.9]} 36... Qxh5 {[%clk 0:00:27]} 37. Rf3 {[%clk 0:00:06.3]} 37...
Nxf3+ {[%clk 0:00:26.5]} 38. gxf3 {[%clk 0:00:04.3]} 38... Rd1+ {[%clk
0:00:26.3]} 39. Kf2 {[%clk 0:00:04.4]} 39... Qe5 {[%clk 0:00:21.7]} 40. Qe3
{[%clk 0:00:04]} 40... Bh4+ {[%clk 0:00:21]} 41. Kg2 {[%clk 0:00:03.9]} 41...
Qg3# {[%clk 0:00:20.5]} 0-1

[Event "*** SCC Grand Prix: Titled Tuesday Blitz"]
[Site "Chess.com"]
[Date "2020.08.11"]
[Round "2"]
[White "catzapto"]
[Black "Ranindu2003"]
[Result "0-1"]
[WhiteElo "1971"]
[BlackElo "2614"]
[TimeControl "180+1"]
[EndTime "10:19:02 PDT"]
[Termination "Ranindu2003 won by resignation"]

1. e4 {[%clk 0:03:00.9]} 1... g6 {[%clk 0:02:59.1]} 2. Nf3 {[%clk 0:02:58.6]}
2... Bg7 {[%clk 0:02:58.9]} 3. Bc4 {[%clk 0:02:56.6]} 3... d6 {[%clk 0:02:58.6]}
4. c3 {[%clk 0:02:55.7]} 4... a6 {[%clk 0:02:57]} 5. a4 {[%clk 0:02:55.3]} 5...
e6 {[%clk 0:02:54.9]} 6. O-O {[%clk 0:02:54.4]} 6... Ne7 {[%clk 0:02:54.9]} 7.
d4 {[%clk 0:02:53.8]} 7... b6 {[%clk 0:02:55.2]} 8. Bg5 {[%clk 0:02:49.3]} 8...
Bb7 {[%clk 0:02:55.6]} 9. Re1 {[%clk 0:02:48.6]} 9... h6 {[%clk 0:02:55.4]} 10.
Be3 {[%clk 0:02:46.8]} 10... Nd7 {[%clk 0:02:54.9]} 11. Nbd2 {[%clk 0:02:44.9]}
11... Nf6 {[%clk 0:02:52.3]} 12. Bd3 {[%clk 0:02:39.2]} 12... Ng4 {[%clk
0:02:47.8]} 13. Qc2 {[%clk 0:02:37.1]} 13... e5 {[%clk 0:02:44.3]} 14. d5 {[%clk
0:02:33.4]} 14... O-O {[%clk 0:02:40.7]} 15. h3 {[%clk 0:02:32.9]} 15... Nxe3
{[%clk 0:02:40.2]} 16. fxe3 {[%clk 0:02:33.8]} 16... f5 {[%clk 0:02:37.7]} 17.
c4 {[%clk 0:02:23.9]} 17... a5 {[%clk 0:02:30.3]} 18. Nh4 {[%clk 0:02:03.2]}
18... Qd7 {[%clk 0:02:21.9]} 19. exf5 {[%clk 0:01:56.3]} 19... gxf5 {[%clk
0:02:20.6]} 20. Rf1 {[%clk 0:01:52.2]} 20... e4 {[%clk 0:02:20.3]} 21. Be2
{[%clk 0:01:46.9]} 21... Bf6 {[%clk 0:02:19.8]} 22. g3 {[%clk 0:01:42.6]} 22...
Bg5 {[%clk 0:02:16]} 23. Qc3 {[%clk 0:01:38.1]} 23... c6 {[%clk 0:02:10.4]} 24.
dxc6 {[%clk 0:01:30.3]} 24... Nxc6 {[%clk 0:02:09.7]} 25. Nxf5 {[%clk
0:01:13.7]} 25... Rxf5 {[%clk 0:02:08.1]} 26. Bg4 {[%clk 0:01:13.8]} 26... Rxf1+
{[%clk 0:02:03.8]} 27. Rxf1 {[%clk 0:01:14.7]} 27... Qe7 {[%clk 0:01:52.2]} 28.
h4 {[%clk 0:00:58.3]} 28... Ne5 {[%clk 0:01:51.7]} 29. Bf5 {[%clk 0:00:36.8]}
29... Bxh4 {[%clk 0:01:42.9]} 30. gxh4 {[%clk 0:00:18.5]} 30... Qxh4 {[%clk
0:01:43.8]} 31. Rf2 {[%clk 0:00:19]} 31... Kh8 {[%clk 0:01:28.9]} 32. Rf4 {[%clk
0:00:14.5]} 32... Rg8+ {[%clk 0:01:23.4]} 33. Kf1 {[%clk 0:00:13.4]} 33... Qh1+
{[%clk 0:01:21.2]} 34. Ke2 {[%clk 0:00:13.8]} 34... Rg2+ {[%clk 0:01:16.5]} 35.
Rf2 {[%clk 0:00:14.4]} 35... Qh5+ {[%clk 0:01:16.1]} 36. Ke1 {[%clk 0:00:14.1]}
36... Rxf2 {[%clk 0:01:15.9]} 37. Kxf2 {[%clk 0:00:14.2]} 37... Qxf5+ {[%clk
0:01:15.9]} 38. Ke2 {[%clk 0:00:13.7]} 38... Qg4+ {[%clk 0:01:15.2]} 39. Ke1
{[%clk 0:00:13.7]} 39... Kh7 {[%clk 0:01:15.6]} 40. c5 {[%clk 0:00:12.1]} 40...
Nd3+ {[%clk 0:01:15.5]} 41. Kf1 {[%clk 0:00:10.8]} 41... Qg3 {[%clk 0:01:04.8]}
42. Nxe4 {[%clk 0:00:08.8]} 42... Bxe4 {[%clk 0:01:03.7]} 43. Qf6 {[%clk
0:00:07.8]} 43... Qf3+ {[%clk 0:01:03.5]} 44. Qxf3 {[%clk 0:00:07.5]} 44... Bxf3
{[%clk 0:01:04.4]} 45. cxd6 {[%clk 0:00:07.5]} 45... Ne5 {[%clk 0:01:04.1]} 46.
Kf2 {[%clk 0:00:07.1]} 46... Bc6 {[%clk 0:01:04.2]} 47. Kg3 {[%clk 0:00:07.1]}
47... Bxa4 {[%clk 0:01:04.3]} 48. Kf4 {[%clk 0:00:07.5]} 48... Nd7 {[%clk
0:01:04.3]} 49. Kf5 {[%clk 0:00:08]} 49... h5 {[%clk 0:01:02.5]} 50. e4 {[%clk
0:00:08.3]} 50... h4 {[%clk 0:01:02.4]} 51. e5 {[%clk 0:00:05.4]} 51... Nxe5
{[%clk 0:01:01.3]} 52. Kxe5 {[%clk 0:00:04.2]} 52... h3 {[%clk 0:01:01.9]} 53.
Ke6 {[%clk 0:00:04.7]} 53... h2 {[%clk 0:01:02.3]} 54. d7 {[%clk 0:00:05.6]}
54... Bxd7+ {[%clk 0:01:00.2]} 55. Kxd7 {[%clk 0:00:06.5]} 55... h1=Q {[%clk
0:01:00.6]} 56. Kc7 {[%clk 0:00:06.6]} 56... Qc1+ {[%clk 0:01:00.6]} 57. Kxb6
{[%clk 0:00:06.7]} 57... Qxb2+ {[%clk 0:01:01.5]} 58. Kxa5 {[%clk 0:00:07.6]}
58... Kg6 {[%clk 0:01:02]} 59. Ka4 {[%clk 0:00:08.5]} 59... Kf5 {[%clk
0:01:02.7]} 0-1

[Event "*** SCC Grand Prix: Titled Tuesday Blitz"]
[Site "Chess.com"]
[Date "2020.08.11"]
[Round "2"]
[White "RusPakhom"]
[Black "Djager97"]
[Result "1-0"]
[WhiteElo "2296"]
[BlackElo "2590"]
[TimeControl "180+1"]
[EndTime "10:19:03 PDT"]
[Termination "RusPakhom won by resignation"]

1. e4 {[%clk 0:03:00.9]} 1... e5 {[%clk 0:02:59.7]} 2. Nf3 {[%clk 0:03:00.8]}
2... Nc6 {[%clk 0:02:59.8]} 3. Bb5 {[%clk 0:03:01.4]} 3... a6 {[%clk 0:02:59.8]}
4. Bxc6 {[%clk 0:03:01.8]} 4... dxc6 {[%clk 0:03:00.7]} 5. Nc3 {[%clk
0:03:02.4]} 5... Bd6 {[%clk 0:02:55.7]} 6. d4 {[%clk 0:03:00.5]} 6... exd4
{[%clk 0:02:55.5]} 7. Qxd4 {[%clk 0:02:59.9]} 7... f6 {[%clk 0:02:53.1]} 8. Be3
{[%clk 0:02:59.9]} 8... Be6 {[%clk 0:02:46.9]} 9. O-O-O {[%clk 0:02:57.3]} 9...
Ne7 {[%clk 0:02:43.1]} 10. Qd2 {[%clk 0:02:56.5]} 10... Ng6 {[%clk 0:02:40]} 11.
Nd4 {[%clk 0:02:54.4]} 11... Qe7 {[%clk 0:02:22.4]} 12. f4 {[%clk 0:02:48.8]}
12... Bd7 {[%clk 0:02:12.9]} 13. Nf5 {[%clk 0:02:20.6]} 13... Bxf5 {[%clk
0:01:57.5]} 14. exf5 {[%clk 0:02:19.5]} 14... Nf8 {[%clk 0:01:57.6]} 15. g4
{[%clk 0:01:46.9]} 15... O-O-O {[%clk 0:01:57]} 16. Qf2 {[%clk 0:01:44.1]} 16...
Nd7 {[%clk 0:01:52.9]} 17. Rhe1 {[%clk 0:01:21.6]} 17... Qf7 {[%clk 0:01:51.4]}
18. Kb1 {[%clk 0:01:18.6]} 18... Bb4 {[%clk 0:01:49.3]} 19. Bd2 {[%clk
0:01:16.8]} 19... Rhe8 {[%clk 0:01:44.9]} 20. Ne4 {[%clk 0:01:13.4]} 20... Bxd2
{[%clk 0:01:40.8]} 21. Rxd2 {[%clk 0:01:13.5]} 21... Nb6 {[%clk 0:01:35.8]} 22.
Rxd8+ {[%clk 0:01:10.1]} 22... Rxd8 {[%clk 0:01:35.5]} 23. Nc5 {[%clk 0:01:09]}
23... Qd5 {[%clk 0:01:20.8]} 24. b3 {[%clk 0:01:05.9]} 24... Kb8 {[%clk
0:01:10.8]} 25. Ne6 {[%clk 0:01:05.1]} 25... Rd7 {[%clk 0:01:10.5]} 26. Qe2
{[%clk 0:00:32.4]} 26... Nc8 {[%clk 0:00:28.3]} 27. Qe4 {[%clk 0:00:24.9]} 27...
Qd2 {[%clk 0:00:20.4]} 28. Qe2 {[%clk 0:00:22.9]} 28... Qd5 {[%clk 0:00:19.5]}
29. Qe4 {[%clk 0:00:21.7]} 29... Qd2 {[%clk 0:00:18.9]} 30. Qe2 {[%clk
0:00:21.3]} 30... Qd6 {[%clk 0:00:19.4]} 31. g5 {[%clk 0:00:13.4]} 31... Ne7
{[%clk 0:00:13.4]} 32. Nf8 {[%clk 0:00:10.9]} 32... Nxf5 {[%clk 0:00:09.6]} 33.
Nxd7+ {[%clk 0:00:10.5]} 33... Qxd7 {[%clk 0:00:10.5]} 34. Qe8+ {[%clk 0:00:11]}
34... Qxe8 {[%clk 0:00:11.1]} 35. Rxe8+ {[%clk 0:00:11.4]} 35... Ka7 {[%clk
0:00:12]} 36. gxf6 {[%clk 0:00:11.8]} 36... gxf6 {[%clk 0:00:12.9]} 37. Rf8
{[%clk 0:00:12.1]} 37... Nd6 {[%clk 0:00:05.8]} 38. Rxf6 {[%clk 0:00:12.1]}
38... Ne4 {[%clk 0:00:06.7]} 39. Rh6 {[%clk 0:00:11.9]} 1-0

[Event "*** SCC Grand Prix: Titled Tuesday Blitz"]
[Site "Chess.com"]
[Date "2020.08.11"]
[Round "2"]
[White "Nafania1"]
[Black "RobertoJBM"]
[Result "0-1"]
[WhiteElo "2472"]
[BlackElo "2711"]
[TimeControl "180+1"]
[EndTime "10:19:05 PDT"]
[Termination "RobertoJBM won by resignation"]

1. e4 {[%clk 0:03:00.9]} 1... c6 {[%clk 0:02:57.7]} 2. d4 {[%clk 0:02:56.1]}
2... d5 {[%clk 0:02:58.6]} 3. exd5 {[%clk 0:02:55.9]} 3... cxd5 {[%clk
0:02:58.2]} 4. Bd3 {[%clk 0:02:56.1]} 4... Nc6 {[%clk 0:02:54.4]} 5. c3 {[%clk
0:02:56.2]} 5... g6 {[%clk 0:02:52.8]} 6. h3 {[%clk 0:02:55.5]} 6... Bg7 {[%clk
0:02:52.3]} 7. Nf3 {[%clk 0:02:55.6]} 7... Nf6 {[%clk 0:02:52]} 8. O-O {[%clk
0:02:55.5]} 8... O-O {[%clk 0:02:51.5]} 9. Bf4 {[%clk 0:02:55.5]} 9... Bf5
{[%clk 0:02:49.4]} 10. Be2 {[%clk 0:02:53]} 10... Ne4 {[%clk 0:02:48.3]} 11.
Nbd2 {[%clk 0:02:52.6]} 11... Rc8 {[%clk 0:02:47]} 12. Nxe4 {[%clk 0:02:45.2]}
12... Bxe4 {[%clk 0:02:46]} 13. Nd2 {[%clk 0:02:42.4]} 13... Bf5 {[%clk
0:02:45.9]} 14. Re1 {[%clk 0:02:42.2]} 14... Re8 {[%clk 0:02:42.1]} 15. a3
{[%clk 0:02:35.5]} 15... a6 {[%clk 0:02:40.8]} 16. Bf3 {[%clk 0:02:35.2]} 16...
Na5 {[%clk 0:02:37.7]} 17. Rc1 {[%clk 0:02:24.3]} 17... b5 {[%clk 0:02:32.8]}
18. Qe2 {[%clk 0:02:08.6]} 18... Nc4 {[%clk 0:02:30.5]} 19. Nb3 {[%clk
0:02:06.3]} 19... e5 {[%clk 0:02:16.1]} 20. dxe5 {[%clk 0:02:04.8]} 20... Bxe5
{[%clk 0:02:17]} 21. Bxe5 {[%clk 0:01:45.6]} 21... Rxe5 {[%clk 0:02:15.1]} 22.
Qf1 {[%clk 0:01:41.4]} 22... Rxe1 {[%clk 0:02:11.5]} 23. Qxe1 {[%clk 0:01:41.7]}
23... Nxb2 {[%clk 0:02:11.4]} 24. Qd2 {[%clk 0:01:33.4]} 24... Nc4 {[%clk
0:02:09.7]} 25. Qd4 {[%clk 0:01:20.7]} 25... Be6 {[%clk 0:02:01]} 26. Nc5 {[%clk
0:01:16.1]} 26... Nxa3 {[%clk 0:01:34.5]} 27. Nxa6 {[%clk 0:01:11.8]} 27... Qg5
{[%clk 0:01:23.8]} 28. Rd1 {[%clk 0:00:56.8]} 28... Bxh3 {[%clk 0:00:51.8]} 29.
Bxd5 {[%clk 0:00:51.1]} 29... Rd8 {[%clk 0:00:42]} 30. Nc7 {[%clk 0:00:50.3]}
30... Nc4 {[%clk 0:00:38.5]} 31. Rd3 {[%clk 0:00:47.4]} 31... Bd7 {[%clk
0:00:17.6]} 32. Bxc4 {[%clk 0:00:43.6]} 32... bxc4 {[%clk 0:00:16.6]} 33. Qxc4
{[%clk 0:00:43.9]} 33... Bf5 {[%clk 0:00:14.1]} 34. Rxd8+ {[%clk 0:00:43.2]}
34... Qxd8 {[%clk 0:00:15]} 35. Nd5 {[%clk 0:00:42.7]} 35... Be6 {[%clk
0:00:15]} 36. Qd4 {[%clk 0:00:36.4]} 36... Qxd5 {[%clk 0:00:14.3]} 37. Qe3
{[%clk 0:00:36]} 37... Qc4 {[%clk 0:00:13.5]} 38. f3 {[%clk 0:00:34.5]} 38... h5
{[%clk 0:00:13.9]} 39. Qe5 {[%clk 0:00:34.2]} 39... Kf8 {[%clk 0:00:13.9]} 40.
Qf6 {[%clk 0:00:33.2]} 40... Ke8 {[%clk 0:00:14]} 41. Qe5 {[%clk 0:00:32.9]}
41... Kd7 {[%clk 0:00:13.5]} 42. Kh1 {[%clk 0:00:31.2]} 42... Kc6 {[%clk
0:00:12.8]} 43. Qa5 {[%clk 0:00:29.5]} 43... Kd6 {[%clk 0:00:10.1]} 44. Kh2
{[%clk 0:00:25.8]} 44... h4 {[%clk 0:00:09.5]} 45. Qa3+ {[%clk 0:00:22.5]} 45...
Ke5 {[%clk 0:00:09.4]} 46. Qc1 {[%clk 0:00:21.9]} 46... Qf4+ {[%clk 0:00:09.2]}
47. Qxf4+ {[%clk 0:00:22]} 47... Kxf4 {[%clk 0:00:10.1]} 0-1

[Event "*** SCC Grand Prix: Titled Tuesday Blitz"]
[Site "Chess.com"]
[Date "2020.08.11"]
[Round "2"]
[White "Jumbo"]
[Black "Batsai"]
[Result "1-0"]
[WhiteElo "2874"]
[BlackElo "2328"]
[TimeControl "180+1"]
[EndTime "10:19:06 PDT"]
[Termination "Jumbo won by resignation"]

1. d4 {[%clk 0:03:00.9]} 1... Nf6 {[%clk 0:02:59.4]} 2. Bf4 {[%clk 0:02:59.3]}
2... d5 {[%clk 0:02:55.5]} 3. e3 {[%clk 0:02:59.3]} 3... c5 {[%clk 0:02:51.8]}
4. c3 {[%clk 0:02:58.6]} 4... e6 {[%clk 0:02:52.3]} 5. Nd2 {[%clk 0:02:57.4]}
5... Bd6 {[%clk 0:02:52.4]} 6. Bg3 {[%clk 0:02:57.9]} 6... Qc7 {[%clk
0:02:49.2]} 7. Rc1 {[%clk 0:02:43.5]} 7... O-O {[%clk 0:02:42.3]} 8. Ngf3 {[%clk
0:02:31.6]} 8... Nbd7 {[%clk 0:02:36.6]} 9. c4 {[%clk 0:02:31.5]} 9... b6 {[%clk
0:02:23.3]} 10. b4 {[%clk 0:02:28.6]} 10... Bb7 {[%clk 0:02:14.6]} 11. Be2
{[%clk 0:02:05.1]} 11... Ne4 {[%clk 0:02:01.2]} 12. Bxd6 {[%clk 0:01:47.7]}
12... Qxd6 {[%clk 0:01:50.2]} 13. dxc5 {[%clk 0:01:46.9]} 13... bxc5 {[%clk
0:01:48.1]} 14. Nxe4 {[%clk 0:01:46.5]} 14... Qb6 {[%clk 0:01:42.7]} 15. bxc5
{[%clk 0:01:43]} 15... Qa5+ {[%clk 0:01:38.8]} 16. Qd2 {[%clk 0:01:42.8]} 16...
Qa3 {[%clk 0:01:36]} 17. Nd6 {[%clk 0:01:41.6]} 17... Nxc5 {[%clk 0:01:33.8]}
18. O-O {[%clk 0:01:35.3]} 18... dxc4 {[%clk 0:01:21.7]} 19. Nxb7 {[%clk
0:01:31.3]} 19... Nxb7 {[%clk 0:01:22.6]} 20. Rxc4 {[%clk 0:01:29.3]} 20... Rad8
{[%clk 0:01:21.2]} 21. Qc2 {[%clk 0:01:28.8]} 21... Nd6 {[%clk 0:01:21.2]} 22.
Rc3 {[%clk 0:01:26.8]} 22... Qa5 {[%clk 0:01:20.4]} 23. Rc1 {[%clk 0:01:26.4]}
23... Nf5 {[%clk 0:01:18.6]} 24. h3 {[%clk 0:01:26.1]} 24... h6 {[%clk
0:01:18.1]} 25. Bd3 {[%clk 0:01:25.5]} 25... Ne7 {[%clk 0:01:17.5]} 26. Rc5
{[%clk 0:01:22.8]} 26... Qa3 {[%clk 0:01:16.3]} 27. Bh7+ {[%clk 0:01:22.4]}
27... Kh8 {[%clk 0:01:15]} 28. Be4 {[%clk 0:01:22.6]} 28... f5 {[%clk
0:01:10.7]} 29. Bb7 {[%clk 0:01:20.2]} 29... Ng6 {[%clk 0:00:58.1]} 30. Nd4
{[%clk 0:01:13.1]} 30... Rde8 {[%clk 0:00:49.3]} 31. Qb3 {[%clk 0:01:01]} 31...
Qxb3 {[%clk 0:00:44.1]} 32. axb3 {[%clk 0:01:01.9]} 32... e5 {[%clk 0:00:43.7]}
33. Nb5 {[%clk 0:01:00.2]} 33... f4 {[%clk 0:00:43.4]} 34. e4 {[%clk 0:00:58.6]}
34... f3 {[%clk 0:00:42.9]} 35. g3 {[%clk 0:00:58.3]} 35... Rf6 {[%clk
0:00:41.4]} 36. h4 {[%clk 0:00:54.1]} 36... Rb6 {[%clk 0:00:41]} 37. Bd5 {[%clk
0:00:54]} 37... Ne7 {[%clk 0:00:41]} 38. Nc7 {[%clk 0:00:50.7]} 38... Rd8 {[%clk
0:00:37.2]} 39. Ne6 {[%clk 0:00:47.4]} 39... Re8 {[%clk 0:00:36.1]} 40. Bc4
{[%clk 0:00:44.6]} 40... Ng8 {[%clk 0:00:34.6]} 41. Nc7 {[%clk 0:00:43.8]} 41...
Rd8 {[%clk 0:00:34.5]} 42. Nd5 {[%clk 0:00:44.1]} 42... Rb7 {[%clk 0:00:34.3]}
43. Rc3 {[%clk 0:00:43.8]} 43... Rf8 {[%clk 0:00:32]} 44. h5 {[%clk 0:00:42.8]}
44... Ne7 {[%clk 0:00:31.4]} 45. Nxe7 {[%clk 0:00:42.2]} 45... Rxe7 {[%clk
0:00:32.3]} 46. Bd5 {[%clk 0:00:42.7]} 46... g5 {[%clk 0:00:26.4]} 47. hxg6
{[%clk 0:00:41.6]} 47... Kg7 {[%clk 0:00:26.4]} 48. Rc7 {[%clk 0:00:41.5]} 48...
Rxc7 {[%clk 0:00:25.8]} 49. Rxc7+ {[%clk 0:00:42.4]} 49... Kxg6 {[%clk
0:00:26.7]} 50. Rxa7 {[%clk 0:00:41.8]} 50... Rc8 {[%clk 0:00:26.1]} 51. Bf7+
{[%clk 0:00:35.4]} 51... Kf6 {[%clk 0:00:25.2]} 52. Bc4 {[%clk 0:00:35.4]} 52...
Rd8 {[%clk 0:00:25.5]} 53. Rf7+ {[%clk 0:00:35.7]} 53... Kg5 {[%clk 0:00:25]}
54. Rxf3 {[%clk 0:00:36.1]} 54... Rd1+ {[%clk 0:00:24.3]} 55. Kg2 {[%clk
0:00:36.5]} 55... Rd4 {[%clk 0:00:24.1]} 56. Rf5+ {[%clk 0:00:36.3]} 56... Kg4
{[%clk 0:00:23.5]} 1-0

[Event "*** SCC Grand Prix: Titled Tuesday Blitz"]
[Site "Chess.com"]
[Date "2020.08.11"]
[Round "2"]
[White "PauloCesarCosta_sad"]
[Black "CroissantNeuf"]
[Result "1-0"]
[WhiteElo "2252"]
[BlackElo "2435"]
[TimeControl "180+1"]
[EndTime "10:19:06 PDT"]
[Termination "PauloCesarCosta_sad won by resignation"]

1. Nf3 {[%clk 0:03:00.9]} 1... Nf6 {[%clk 0:02:59.5]} 2. c4 {[%clk 0:03:01.3]}
2... c5 {[%clk 0:02:59.2]} 3. g3 {[%clk 0:03:01.1]} 3... b6 {[%clk 0:02:59.2]}
4. Bg2 {[%clk 0:03:01.5]} 4... Bb7 {[%clk 0:02:59.3]} 5. O-O {[%clk 0:03:01.9]}
5... g6 {[%clk 0:02:58.5]} 6. Nc3 {[%clk 0:03:02.3]} 6... Bg7 {[%clk 0:02:58.4]}
7. d4 {[%clk 0:03:02.8]} 7... cxd4 {[%clk 0:02:57]} 8. Qxd4 {[%clk 0:03:03.7]}
8... d6 {[%clk 0:02:56.5]} 9. Be3 {[%clk 0:02:45.3]} 9... Nbd7 {[%clk
0:02:53.8]} 10. Rac1 {[%clk 0:02:35.7]} 10... a6 {[%clk 0:02:53.2]} 11. b3
{[%clk 0:02:31.5]} 11... Rc8 {[%clk 0:02:51]} 12. Rfd1 {[%clk 0:02:31.2]} 12...
h5 {[%clk 0:02:50.3]} 13. Nd5 {[%clk 0:02:14.2]} 13... O-O {[%clk 0:02:37.1]}
14. Nxf6+ {[%clk 0:02:04.7]} 14... Bxf6 {[%clk 0:02:34.3]} 15. Qd2 {[%clk
0:02:04.8]} 15... b5 {[%clk 0:02:28.3]} 16. cxb5 {[%clk 0:01:57.1]} 16... axb5
{[%clk 0:02:27.7]} 17. Rxc8 {[%clk 0:01:57.6]} 17... Qxc8 {[%clk 0:02:24.9]} 18.
Rc1 {[%clk 0:01:55.9]} 18... Qa8 {[%clk 0:02:24.8]} 19. Rc7 {[%clk 0:01:47.3]}
19... Ne5 {[%clk 0:02:23.6]} 20. Rxb7 {[%clk 0:01:39.4]} 20... Qxb7 {[%clk
0:02:21.4]} 21. Nxe5 {[%clk 0:01:39.6]} 21... Qc7 {[%clk 0:02:21.2]} 22. Nd3
{[%clk 0:01:28.4]} 22... Rc8 {[%clk 0:02:11.8]} 23. Bf3 {[%clk 0:01:21.1]} 23...
e6 {[%clk 0:02:00.9]} 24. Qb4 {[%clk 0:01:16.4]} 24... Qc2 {[%clk 0:01:48]} 25.
Qxd6 {[%clk 0:01:09.2]} 25... Qxa2 {[%clk 0:01:44.6]} 26. Qd7 {[%clk 0:01:09.4]}
26... Rc3 {[%clk 0:01:36]} 27. Qe8+ {[%clk 0:01:02.2]} 27... Kg7 {[%clk
0:01:35.1]} 28. Bc5 {[%clk 0:00:57.2]} 28... Rxc5 {[%clk 0:00:48.5]} 29. Nxc5
{[%clk 0:00:58.1]} 29... h4 {[%clk 0:00:41.7]} 30. gxh4 {[%clk 0:00:49.6]} 30...
Bxh4 {[%clk 0:00:37.1]} 31. Qxb5 {[%clk 0:00:49.5]} 31... Qa1+ {[%clk
0:00:33.4]} 32. Kg2 {[%clk 0:00:49.7]} 32... Qd4 {[%clk 0:00:33.9]} 33. e3
{[%clk 0:00:39]} 33... Qe5 {[%clk 0:00:22.4]} 34. Qc4 {[%clk 0:00:32.9]} 34...
Be7 {[%clk 0:00:16.8]} 35. Nd3 {[%clk 0:00:30.4]} 35... Qf5 {[%clk 0:00:15.4]}
36. Qe4 {[%clk 0:00:28.6]} 36... Qg5+ {[%clk 0:00:15.1]} 37. Qg4 {[%clk
0:00:28.4]} 37... Qb5 {[%clk 0:00:15.5]} 38. Nf4 {[%clk 0:00:25.7]} 38... Qxb3
{[%clk 0:00:14.3]} 39. Be4 {[%clk 0:00:24.8]} 39... Qc3 {[%clk 0:00:11]} 40.
Bxg6 {[%clk 0:00:18.9]} 40... fxg6 {[%clk 0:00:11.9]} 41. Qxg6+ {[%clk
0:00:18.7]} 41... Kh8 {[%clk 0:00:11.9]} 42. Qh6+ {[%clk 0:00:15.9]} 42... Kg8
{[%clk 0:00:09.8]} 43. Qxe6+ {[%clk 0:00:16.1]} 1-0